bitfinex-derivatives/quotes_SOLF0:USTF0_20251216
["timestamp","ask_amount","ask_price","bid_price","bid_amount"]
[1765865054927,7.1192,126.45,126.42,70.33]
[1765865055824,7.18018307,126.45,126.42,70.38650591]
[1765865057932,7.18018307,126.45,126.43,3.09]
[1765865070638,7.1201,126.43,126.42,70.38650591]
[1765865075550,0.06098307,126.45,126.43,3.25]
[1765865076353,7.18008307,126.45,126.43,3.25]
[1765865091664,0.06098307,126.45,126.42,70.54650591]
[1765865091955,0.06098307,126.45,126.43,3.25]
[1765865092363,7.1195,126.44,126.43,3.25]
[1765865093157,7.1195,126.44,126.42,67.29650591]
[1765865093861,7.1195,126.44,126.42,0.05650591]
[1765865094063,9.7616426,126.44,126.42,0.05650591]
[1765865094357,116.68524901,126.43,126.38,3.25]
[1765865094549,110.7755,126.41,126.38,3.25]
[1765865095163,7.122,126.4,126.38,3.25]
[1765865095365,7.17440223,126.4,126.38,3.30357171]
[1765865098457,7.17440223,126.4,126.39,3.25]
[1765865101059,0.05240223,126.4,126.39,3.25]
[1765865101258,0.00240223,126.4,126.39,3.25]
[1765865107070,0.00240223,126.4,126.39,5.8921426]
[1765865113079,0.00240223,126.4,126.39,3.25]
[1765865113282,0.00240223,126.4,126.39,5.8921426]
[1765865121389,0.00240223,126.4,126.39,3.25]
[1765865123488,7.1207,126.42,126.39,3.25]
[1765865124488,7.1721405,126.42,126.39,3.30746116]
[1765865128083,0.0514405,126.42,126.4,7.41881595]
[1765865128288,0.0514405,126.42,126.41,3.29]
[1765865130478,7.1720405,126.42,126.41,3.29]
[1765865130884,7.1720405,126.42,126.4,67.26]
[1765865131084,7.1720405,126.42,126.41,3.29]
[1765865131392,0.0514405,126.42,126.41,3.29]
[1765865131786,0.0014405,126.42,126.41,3.29]
[1765865132695,0.0014405,126.42,126.41,31.29]
[1765865134095,0.0014405,126.42,126.41,98.55]
[1765865134698,0.0014405,126.42,126.41,70.55]
[1765865140005,0.0014405,126.42,126.41,98.55]
[1765865143102,0.0014405,126.42,126.41,102.67738961]
[1765865143402,7.1177,126.48,126.43,3.3]
[1765865143604,7.1177,126.48,126.44,3.3]
[1765865143805,7.1177,126.48,126.46,3.3]
[1765865144306,7.17709081,126.48,126.46,3.35665286]
[1765865144807,0.05939081,126.48,126.46,3.35665286]
[1765865158714,110.6588,126.55,126.47,3.3]
[1765865159022,110.6588,126.55,126.49,3.3]
[1765865159223,110.6588,126.55,126.51,3.3]
[1765865159416,7.1152,126.52,126.5,67.22]
[1765865159617,110.6712,126.53,126.5,67.22]
[1765865159823,114.85930033,126.53,126.5,67.28002316]
[1765865160007,7.1158,126.51,126.5,0.06002316]
[1765865165315,7.17551072,126.53,126.5,3.46002316]
[1765865166025,0.06071072,126.53,126.5,3.46002316]
[1765865169712,0.06071072,126.53,126.52,3.4]
[1765865170130,7.1117,126.58,126.52,3.4]
[1765865170428,7.1117,126.58,126.54,3.4]
[1765865171231,0.05917874,126.57,126.55,3.45448306]
[1765865180940,0.05917874,126.57,126.56,70.58]
[1765865184443,113.23285413,126.62,126.57,3.4]
[1765865184938,7.1106,126.6,126.57,3.4]
[1765865185440,7.17088596,126.6,126.57,3.45057434]
[1765865185837,7.1112,126.59,126.57,0.05057434]
[1765865186338,9.74695413,126.59,126.57,0.05057434]
[1765865186840,7.1112,126.59,126.57,0.05057434]
[1765865187041,9.74695413,126.59,126.57,0.05057434]
[1765865188743,7.1112,126.59,126.57,3.45057434]
[1765865189639,9.74695413,126.59,126.57,0.05057434]
[1765865189834,7.1112,126.59,126.57,0.05057434]
[1765865190537,0.06028596,126.6,126.57,3.45057434]
[1765865190840,0.06028596,126.6,126.59,3.4]
[1765865191742,0.06028596,126.6,126.57,3.45057434]
[1765865191944,0.06028596,126.6,126.57,70.63057434]
[1765865192143,2.69604009,126.6,126.57,0.05057434]
[1765865192546,2.63575413,126.58,126.57,0.05057434]
[1765865192847,2.63575413,126.58,126.52,3.35]
[1765865192848,113.26385413,126.58,126.52,3.35]
[1765865193148,2.63575413,126.56,126.52,3.35]
[1765865193343,9.74875413,126.56,126.52,3.35]
[1765865193546,2.63575413,126.54,126.51,70.53]
[1765865193743,2.6941105,126.54,126.51,67.23265964]
[1765865193946,110.6919,126.51,126.45,3.35]
[1765865194149,2.63575413,126.5,126.45,3.35]
[1765865194837,120.45015413,126.5,126.45,5.98575413]
[1765865195240,0.05519345,126.49,126.46,0.05889006]
[1765865195551,0.05519345,126.49,126.46,3.40889006]
[1765865195944,0.05519345,126.49,126.46,0.05889006]
[1765865197851,0.05519345,126.49,126.46,3.40889006]
[1765865200141,0.05519345,126.49,126.47,3.35]
[1765865200450,0.05519345,126.49,126.48,5.99043387]
[1765865201849,0.05519345,126.49,126.48,73.19043387]
[1765865205740,0.05519345,126.49,126.48,70.55]
[1765865206056,0.05519345,126.49,126.48,73.19043387]
[1765865206655,7.1154,126.52,126.49,3.35]
[1765865207649,7.1663623,126.52,126.49,3.40405673]
[1765865220263,7.1156,126.51,126.49,3.40405673]
[1765865220462,7.1156,126.51,126.49,0.05405673]
[1765865220463,9.75603387,126.51,126.49,0.05405673]
[1765865226769,7.1156,126.51,126.49,0.05405673]
[1765865228971,9.75603387,126.51,126.49,0.05405673]
[1765865231576,7.1161,126.5,126.49,0.05405673]
[1765865238195,110.7323623,126.52,126.49,5.9344906]
[1765865238196,0.0509623,126.52,126.49,5.9344906]
[1765865238476,0.0509623,126.52,126.51,5.88043387]
[1765865239177,7.38447102,126.59,126.52,3.24]
[1765865239369,110.6157,126.6,126.55,3.24]
[1765865239877,110.5993,126.62,126.57,3.24]
[1765865240073,110.6002,126.61,126.57,3.24]
[1765865240381,0.05397135,126.6,126.58,0.05750447]
[1765865240876,7.1113,126.59,126.58,0.05750447]
[1765865246074,7.1113,126.59,126.58,3.29750447]
[1765865246275,7.1113,126.59,126.58,0.05750447]
[1765865248982,0.05397135,126.6,126.58,3.29750447]
[1765865254893,7.16467135,126.6,126.58,3.29750447]
[1765865256886,0.05397135,126.6,126.58,3.29750447]
[1765865257889,7.16457135,126.6,126.58,3.29750447]
[1765865263797,110.5599,126.66,126.59,7.24815611]
[1765865263999,110.5599,126.66,126.6,3.13]
[1765865264498,7.109,126.63,126.6,3.13]
[1765865264695,110.5739,126.64,126.6,3.13]
[1765865264998,0.05628455,126.63,126.6,3.18695174]
[1765865265587,7.1095,126.62,126.6,0.05695174]
[1765865265987,110.6117,126.6,126.56,70.31]
[1765865266391,110.6117,126.6,126.57,3.13]
[1765865266894,7.112,126.58,126.57,3.18167733]
[1765865267095,0.05870093,126.6,126.57,3.18167733]
[1765865267809,0.05870093,126.6,126.57,7.2988375]
[1765865267989,0.05870093,126.6,126.58,3.13]
[1765865271199,110.5487,126.67,126.59,3.13]
[1765865271400,110.5487,126.67,126.61,3.13]
[1765865271602,110.5487,126.67,126.62,3.13]
[1765865271995,7.1081,126.65,126.62,3.13]
[1765865272196,7.16836182,126.65,126.62,3.18678672]
[1765865272708,7.1087,126.64,126.62,3.18678672]
[1765865273312,7.1087,126.64,126.62,0.05678672]
[1765865278406,114.70606017,126.63,126.57,3.13]
[1765865279508,0.05156451,126.61,126.59,0.05368209]
[1765865279904,7.16206451,126.61,126.59,0.05368209]
[1765865280806,7.16206451,126.61,126.59,3.18368209]
[1765865283010,0.05156451,126.61,126.59,3.18368209]
[1765865286810,0.05156451,126.61,126.59,10.29468209]
[1765865287107,110.5487,126.67,126.6,3.28]
[1765865287901,7.108,126.65,126.62,3.28]
[1765865288813,7.1068,126.67,126.62,3.28]
[1765865289306,7.1075,126.66,126.62,3.28]
[1765865289616,110.5482,126.67,126.62,3.28]
[1765865290703,110.5482,126.67,126.61,67.16]
[1765865290704,110.5654,126.65,126.61,67.16]
[1765865292006,7.109,126.63,126.61,67.16]
[1765865292308,7.109,126.63,126.61,70.44]
[1765865296612,7.109,126.63,126.62,3.28]
[1765865298014,7.109,126.63,126.61,70.44]
[1765865298415,7.108,126.65,126.62,3.28]
[1765865300017,7.1086,126.64,126.62,3.28]
[1765865300418,110.552,126.67,126.62,3.28]
[1765865301922,7.1078,126.65,126.62,3.28]
[1765865303425,9.74018845,126.67,126.62,3.28]
[1765865303731,110.5219,126.7,126.64,3.28]
[1765865303928,5.86017219,126.69,126.64,3.28]
[1765865304226,110.5219,126.7,126.64,3.28]
[1765865304416,5.85915126,126.69,126.64,3.28]
[1765865304616,110.5219,126.7,126.64,3.28]
[1765865304818,5.85915126,126.69,126.64,3.28]
[1765865305019,110.5325,126.69,126.64,3.28]
[1765865305224,5.857199,126.68,126.64,3.28]
[1765865305420,113.16568845,126.69,126.64,3.28]
[1765865306326,2.63318845,126.68,126.64,3.28]
[1765865306522,110.5325,126.69,126.64,3.28]
[1765865306729,113.16568845,126.69,126.64,3.28]
[1765865306930,7.1069,126.67,126.64,3.28]
[1765865307926,7.1057,126.69,126.65,3.28]
[1765865308724,7.1062,126.68,126.65,3.28]
[1765865311031,7.1067,126.67,126.65,3.28]
[1765865313436,113.15798845,126.7,126.65,3.28]
[1765865314939,7.1061,126.68,126.65,3.28]
[1765865317032,7.1068,126.67,126.63,3.12]
[1765865317228,2.63318845,126.68,126.64,3.12]
[1765865317733,110.5327,126.69,126.64,3.12]
[1765865317938,113.16588845,126.69,126.64,3.12]
[1765865318833,7.1072,126.66,126.64,3.12]
[1765865321138,7.1083,126.64,126.62,72.89318845]
[1765865321530,7.1083,126.64,126.62,70.26]
[1765865327050,7.1083,126.64,126.62,67.14]
[1765865327248,7.1083,126.64,126.62,70.26]
[1765865327846,7.1075,126.66,126.63,3.12]
[1765865334757,7.1075,126.66,126.64,3.12]
[1765865335856,7.1075,126.66,126.63,3.12]
[1765865339757,113.18093252,126.67,126.62,70.26]
[1765865340261,7.108,126.65,126.63,3.12]
[1765865346074,7.16715346,126.65,126.63,3.17858986]
[1765865349275,7.16715346,126.65,126.63,0.05858986]
[1765865349862,9.79948598,126.65,126.63,0.05858986]
[1765865350077,0.05915346,126.65,126.64,3.17]
[1765865359379,7.1065,126.68,126.64,3.17]
[1765865359674,7.1065,126.68,126.67,5.80233252]
[1765865359879,110.5191,126.71,126.68,3.17]
[1765865360074,7.1054,126.7,126.68,3.17]
[1765865360272,7.1054,126.7,126.67,5.80233252]
[1765865360472,7.1054,126.7,126.68,0.05334551]
[1765865368189,2.58550245,126.73,126.7,3.17]
[1765865368382,2.58550245,126.73,126.68,3.22334551]
[1765865368786,7.1044,126.71,126.68,3.22334551]
[1765865369781,2.58550245,126.73,126.68,3.22334551]
[1765865370378,2.58550245,126.73,126.69,3.17]
[1765865370581,2.58550245,126.73,126.7,3.17]
[1765865371285,7.1039,126.72,126.7,3.17]
[1765865371991,7.1045,126.71,126.69,4.11090783]
[1765865372185,7.1045,126.71,126.69,7.28090783]
[1765865372484,7.1045,126.71,126.69,3.17]
[1765865374691,2.58550245,126.73,126.69,3.17]
[1765865375385,7.1044,126.71,126.69,3.17]
[1765865376899,110.5069,126.72,126.68,67.17334551]
[1765865377191,110.5069,126.72,126.68,70.56334551]
[1765865377992,7.1053,126.7,126.68,70.56334551]
[1765865379189,7.1053,126.7,126.69,3.39]
[1765865380495,7.1043,126.72,126.69,3.39]
[1765865380694,7.1043,126.72,126.7,3.39]
[1765865381085,7.1043,126.72,126.69,3.39]
[1765865387499,7.1045,126.71,126.69,3.39]
[1765865388198,9.68920245,126.73,126.69,3.39]
[1765865389201,9.68920245,126.73,126.7,3.39]
[1765865390703,110.4814,126.75,126.72,4.11090783]
[1765865390704,7.1023,126.75,126.72,4.11090783]
[1765865390904,7.1023,126.75,126.73,3.39]
[1765865392101,110.4556,126.78,126.74,3.39]
[1765865392298,110.4556,126.78,126.75,0.05591747]
[1765865392807,110.4556,126.78,126.75,3.44591747]
[1765865393002,7.1016,126.76,126.75,0.05591747]
[1765865400312,7.1034,126.73,126.69,7.50090783]
[1765865400712,7.1034,126.73,126.7,3.39]
[1765865401314,7.16040981,126.73,126.7,3.44654258]
[1765865403121,7.1042,126.72,126.7,0.05654258]
[1765865404305,110.55580981,126.73,126.7,0.05654258]
[1765865404306,0.05700981,126.73,126.72,3.27]
[1765865419610,0.05700981,126.73,126.71,70.35]
[1765865419824,7.16060981,126.73,126.71,67.08]
[1765865420019,7.16060981,126.73,126.71,70.35]
[1765865420414,7.16060981,126.73,126.72,3.27]
[1765865421023,0.05700981,126.73,126.72,3.27]
[1765865424426,0.05700981,126.73,126.72,7.37882963]
[1765865425426,0.05700981,126.73,126.72,5.89815791]
[1765865425828,0.05700981,126.73,126.72,3.27]
[1765865426022,0.05700981,126.73,126.72,5.89815791]
[1765865426428,0.05700981,126.73,126.72,3.27]
[1765865426630,0.05700981,126.73,126.72,5.89815791]
[1765865431127,0.05700981,126.73,126.72,3.27]
[1765865431332,0.05700981,126.73,126.72,5.89815791]
[1765865431632,113.18076772,126.73,126.7,0.05654258]
[1765865431824,110.55260981,126.73,126.7,0.05654258]
[1765865432023,2.62815791,126.72,126.7,0.05654258]
[1765865432329,113.18076772,126.73,126.7,0.05654258]
[1765865432935,7.1043,126.71,126.7,0.05654258]
[1765865435731,7.16050981,126.73,126.7,3.28654258]
[1765865441438,7.1041,126.72,126.7,3.28654258]
[1765865449147,0.05700981,126.73,126.7,3.28654258]
[1765865451633,0.05700981,126.73,126.71,2.62815791]
[1765865451838,0.05700981,126.73,126.72,3.23]
[1765865460654,0.05700981,126.73,126.72,5.85815791]
[1765865461459,7.16080981,126.73,126.71,3.23]
[1765865461958,7.16080981,126.73,126.7,3.28654258]
[1765865462253,7.104,126.72,126.7,3.28654258]
[1765865481970,0.05700981,126.73,126.7,3.28654258]
[1765865482768,7.1038,126.72,126.7,3.28654258]
[1765865482966,0.05700981,126.73,126.71,3.37]
[1765865483361,110.55530981,126.73,126.7,0.05654258]
[1765865483870,113.18570472,126.73,126.7,0.05654258]
[1765865484869,7.1043,126.71,126.7,0.05654258]
[1765865485761,9.73469491,126.71,126.7,0.05654258]
[1765865487367,7.1043,126.71,126.7,0.05654258]
[1765865494175,7.1043,126.71,126.7,3.25654258]
[1765865494371,7.1043,126.71,126.7,0.05654258]
[1765865503878,7.1043,126.71,126.7,3.25654258]
[1765865504078,7.1043,126.71,126.7,0.05654258]
[1765865529599,7.1066,126.67,126.66,3.2]
[1765865555507,7.1066,126.67,126.65,18.13977129]
[1765865555713,7.1066,126.67,126.65,3.4563691]
[1765865564131,7.1083,126.64,126.63,19.00142195]
[1765865564334,7.1083,126.64,126.55,14.68340219]
[1765865564335,110.628,126.58,126.55,14.68340219]
[1765865564637,9.74481186,126.56,126.54,3.4]
[1765865565026,113.27611186,126.56,126.53,3.4]
[1765865565228,7.1137,126.55,126.54,0.05072846]
[1765865565532,7.1137,126.55,126.54,3.45072846]
[1765865565722,0.05620491,126.56,126.54,3.45072846]
[1765865568031,0.05620491,126.56,126.55,3.4]
[1765865594246,113.22931186,126.62,126.56,3.2]
[1765865594437,113.22931186,126.62,126.58,3.2]
[1765865594842,110.5977,126.62,126.58,3.2]
[1765865595141,7.1111,126.59,126.58,3.2]
[1765865596547,7.1111,126.59,126.57,3.25047636]
[1765865602267,7.1111,126.59,126.58,3.2]
[1765865603969,0.05735353,126.6,126.58,3.2]
[1765865604168,0.05735353,126.6,126.59,5.83490739]
[1765865605969,0.05735353,126.6,126.59,3.2]
[1765865614772,7.11,126.61,126.59,3.2]
[1765865615071,7.1093,126.63,126.59,3.2]
[1765865615275,7.1093,126.63,126.6,3.34]
[1765865615578,7.1093,126.63,126.61,3.34]
[1765865615770,7.1621723,126.63,126.61,3.39635743]
[1765865623676,0.0528723,126.63,126.61,3.39635743]
[1765865624985,7.1617723,126.63,126.61,3.39635743]
[1765865633091,7.1617723,126.63,126.61,0.05635743]
[1765865634791,11.27821719,126.63,126.61,0.05635743]
[1765865635290,7.1617723,126.63,126.61,0.05635743]
[1765865640500,11.27821719,126.63,126.61,0.05635743]
[1765865644805,7.1122,126.57,126.56,3.34]
[1765865645100,7.1122,126.57,126.55,3.36]
[1765865645496,7.113,126.56,126.54,70.5]
[1765865645905,7.1683897,126.56,126.54,70.555484]
[1765865646995,7.1683897,126.56,126.54,0.055484]
[1765865650608,7.1683897,126.56,126.54,3.415484]
[1765865655408,7.1683897,126.56,126.54,0.055484]
[1765865656209,7.1683897,126.56,126.55,3.36]
[1765865657798,7.1683897,126.56,126.54,0.055484]
[1765865658005,7.1683897,126.56,126.54,3.415484]
[1765865672225,7.1133,126.55,126.54,3.415484]
[1765865681616,7.1133,126.55,126.54,0.055484]
[1765865689933,9.75021951,126.55,126.54,0.055484]
[1765865690931,7.1133,126.55,126.54,0.055484]
[1765865691626,9.75021951,126.55,126.54,0.055484]
[1765865696739,7.1133,126.55,126.54,0.055484]
[1765865702634,7.1133,126.55,126.54,3.165484]
[1765865702840,0.0553897,126.56,126.54,3.165484]
[1765865703040,0.0553897,126.56,126.55,5.74691951]
[1765865706439,7.1113,126.59,126.56,3.11]
[1765865706640,110.5953,126.62,126.58,5.74691951]
[1765865706843,110.5953,126.62,126.59,3.11]
[1765865707040,110.5953,126.62,126.58,5.74691951]
[1765865707436,0.05377543,126.61,126.59,3.16502057]
[1765865707634,7.1106,126.6,126.59,3.16502057]
[1765865708735,7.1106,126.6,126.59,0.05502057]
[1765865714249,0.05377543,126.61,126.59,5.80194008]
[1765865714551,0.05377543,126.61,126.6,3.11]
[1765865717565,7.16387543,126.61,126.59,0.05502057]
[1765865723363,0.05377543,126.61,126.6,5.74691951]
[1765865731358,0.05377543,126.61,126.6,3.11]
[1765865737778,0.00377543,126.61,126.6,7.22489915]
[1765865738073,0.00377543,126.61,126.6,74.36489915]
[1765865740380,0.00377543,126.61,126.6,70.25]
[1765865752475,0.00377543,126.61,126.6,3.11]
[1765865755690,0.00377543,126.61,126.59,0.05502057]
[1765865755887,7.1105,126.6,126.59,3.28502057]
[1765865758103,0.00377543,126.61,126.59,3.28502057]
[1765865761707,0.00377543,126.61,126.6,3.23]
[1765865763510,0.00377543,126.61,126.6,14.68340219]
[1765865765413,0.00377543,126.61,126.59,46.85332191]
[1765865765605,0.00377543,126.61,126.6,3.12]
[1765865789424,0.00377543,126.61,126.6,14.68340219]
[1765865790222,0.00377543,126.61,126.59,49.84942276]
[1765865790422,0.00377543,126.61,126.6,3.12]
[1765865791518,0.00377543,126.61,126.59,37.79939876]
[1765865792013,0.00377543,126.61,126.6,3.12]
[1765865802240,0.00377543,126.61,126.6,14.68340219]
[1765865803936,0.00377543,126.61,126.6,17.31672978]
[1765865814847,0.00377543,126.61,126.6,14.68340219]
[1765865815142,0.00377543,126.61,126.6,17.2885012]
[1765865816339,0.00377543,126.61,126.59,42.71019418]
[1765865816734,0.00377543,126.61,126.6,3.3]
[1765865817145,0.00377543,126.61,126.59,42.71019418]
[1765865817146,7.11377543,126.61,126.59,28.05502057]
[1765865817449,7.11377543,126.61,126.59,0.05502057]
[1765865822141,2.63332759,126.6,126.59,0.05502057]
[1765865824251,110.618,126.59,126.55,3.3]
[1765865824647,7.1123,126.57,126.53,70.36]
[1765865824852,113.26392759,126.58,126.53,70.36]
[1765865825247,0.05271394,126.57,126.54,3.27146727]
[1765865825955,7.1133,126.56,126.54,3.27146727]
[1765865828846,7.1133,126.56,126.54,0.05146727]
[1765865830656,9.74662759,126.56,126.54,0.05146727]
[1765865834767,11.32662759,126.56,126.54,0.05146727]
[1765865834973,9.74662759,126.56,126.54,0.05146727]
[1765865836674,7.1156,126.51,126.5,3.22]
[1765865837977,0.05670053,126.52,126.5,3.22]
[1765865838175,0.05670053,126.52,126.51,5.85332759]
[1765865845277,0.05670053,126.52,126.51,3.22]
[1765865861288,7.1139,126.54,126.51,3.22]
[1765865861588,7.1133,126.56,126.52,3.13]
[1765865862183,7.1133,126.56,126.53,0.05847865]
[1765865862480,0.05733526,126.55,126.54,3.13]
[1765865868583,7.1121,126.58,126.54,3.13]
[1765865869785,7.1121,126.58,126.56,3.13]
[1765865872084,7.1126,126.57,126.55,3.1844422]
[1765865887204,7.1115,126.59,126.55,3.1844422]
[1765865887604,110.6168,126.6,126.55,3.1844422]
[1765865888209,7.1114,126.59,126.55,3.1844422]
[1765865891604,110.608,126.61,126.55,3.1844422]
[1765865891605,7.1105,126.61,126.55,3.1844422]
[1765865891810,7.1105,126.61,126.56,3.15]
[1765865892905,7.1106,126.6,126.56,3.15]
[1765865893106,7.1106,126.6,126.58,3.15]
[1765865896514,7.11,126.62,126.58,3.15]
[1765865896811,7.11,126.62,126.59,3.20965029]
[1765865897411,7.11,126.61,126.59,3.20965029]
[1765865902318,110.5827,126.63,126.59,3.20965029]
[1765865904920,7.1105,126.61,126.59,3.20965029]
[1765865905421,110.5801,126.64,126.59,3.20965029]
[1765865906822,110.5718,126.65,126.59,3.20965029]
[1765865908017,7.1092,126.63,126.59,3.20965029]
[1765865913425,7.1092,126.63,126.6,3.26]
[1765865918820,113.20169991,126.65,126.59,0.05965029]
[1765865920029,7.1096,126.62,126.59,3.31965029]
[1765865922723,7.1101,126.61,126.59,3.31965029]
[1765865934446,7.1093,126.63,126.6,3.26]
[1765865934646,7.1093,126.63,126.6,3.31843878]
[1765865934835,113.19259991,126.66,126.6,3.31843878]
[1765865935043,7.1082,126.65,126.62,3.26]
[1765865935344,7.1082,126.65,126.62,3.32035063]
[1765865936658,2.63379991,126.67,126.62,3.32035063]
[1765865937660,7.1077,126.65,126.62,3.32035063]
[1765865938055,110.5348,126.69,126.62,3.32035063]
[1765865938363,113.16749685,126.69,126.62,3.32035063]
[1765865939861,7.107,126.67,126.62,3.32035063]
[1765865941060,7.107,126.67,126.63,2.63269685]
[1765865941361,7.107,126.67,126.64,3.26]
[1765865941856,7.1072,126.66,126.64,3.26]
[1765865942063,7.1072,126.66,126.64,3.31469537]
[1765865950167,7.1072,126.66,126.64,0.05469537]
[1765865953756,9.73989685,126.66,126.64,0.05469537]
[1765865957468,7.11,126.61,126.59,3.09]
[1765865958366,7.16216864,126.61,126.59,3.14957888]
[1765865958971,0.05216864,126.61,126.59,3.14957888]
[1765865963073,7.16226864,126.61,126.59,0.05957888]
[1765865965472,7.16226864,126.61,126.59,3.14957888]
[1765865965674,2.63269685,126.6,126.59,0.05957888]
[1765865973382,7.16226864,126.61,126.59,0.05957888]
[1765865987078,7.1105,126.6,126.59,0.05957888]
[1765865988188,7.1105,126.6,126.59,3.16957888]
[1765865995185,4.11772771,126.67,126.59,7.28730659]
[1765865995380,110.5465,126.68,126.6,3.11]
[1765865995584,110.5465,126.68,126.62,3.11]
[1765865996187,110.5465,126.68,126.64,3.11]
[1765865996887,7.1082,126.65,126.64,3.11]
[1765866003606,7.1082,126.65,126.63,0.05131385]
[1765866004706,11.22385237,126.65,126.63,0.05131385]
[1765866007406,7.1082,126.65,126.63,0.05131385]
[1765866026521,7.1082,126.65,126.63,3.16131385]
[1765866035533,7.107,126.67,126.63,3.16131385]
[1765866035835,2.6324881,126.68,126.63,3.16131385]
[1765866036333,9.7389881,126.68,126.63,3.16131385]
[1765866037133,7.1066,126.67,126.63,3.16131385]
[1765866039027,7.1072,126.66,126.63,3.16131385]
[1765866045048,7.1064,126.68,126.64,3.26]
[1765866054265,7.1067,126.67,126.64,3.26]
[1765866057063,7.1067,126.67,126.63,2.68380195]
[1765866057262,2.6324881,126.67,126.63,3.31131385]
[1765866057963,9.7395881,126.67,126.63,3.31131385]
[1765866058673,7.1073,126.66,126.63,3.31131385]
[1765866059971,7.1077,126.65,126.63,3.31131385]
[1765866062378,7.1077,126.65,126.63,0.05131385]
[1765866063680,7.1077,126.65,126.63,3.44131385]
[1765866063878,7.1077,126.65,126.63,0.05131385]
[1765866069678,7.1083,126.64,126.63,0.05131385]
[1765866071082,7.1083,126.64,126.63,3.44131385]
[1765866083698,7.1076,126.66,126.63,3.44131385]
[1765866084799,7.1076,126.66,126.64,3.39]
[1765866086699,2.63259409,126.69,126.64,17.99794079]
[1765866086895,113.15699409,126.7,126.65,3.39]
[1765866087101,2.63259409,126.71,126.66,3.44459784]
[1765866087499,7.1056,126.69,126.66,3.44459784]
[1765866088500,7.1063,126.68,126.66,3.44459784]
[1765866090301,7.1053,126.7,126.67,3.39]
[1765866090600,110.4642,126.77,126.7,3.39]
[1765866090808,110.4567,126.78,126.72,3.44069542]
[1765866091009,113.08929409,126.78,126.72,3.44069542]
[1765866091213,7.1018,126.76,126.72,3.44069542]
[1765866091702,110.461,126.77,126.72,3.44069542]
[1765866092615,7.1023,126.75,126.72,0.05069542]
[1765866093110,7.1023,126.75,126.72,3.37069542]
[1765866096115,7.1023,126.75,126.72,0.05069542]
[1765866096512,7.1023,126.75,126.72,3.37069542]
[1765866099325,7.1014,126.77,126.72,3.37069542]
[1765866104023,7.1014,126.77,126.72,10.47429542]
[1765866104221,11.0892946,126.79,126.73,3.32]
[1765866104420,11.0892946,126.79,126.75,3.37517739]
[1765866112235,7.1005,126.78,126.75,3.37517739]
[1765866114636,3.9889946,126.79,126.75,3.37517739]
[1765866115937,11.0888946,126.79,126.75,3.37517739]
[1765866116138,11.0888946,126.79,126.76,3.32]
[1765866116139,3.9889946,126.79,126.76,3.32]
[1765866116528,3.9889946,126.79,126.77,3.32]
[1765866117943,11.0888946,126.79,126.77,3.32]
[1765866118642,3.9889946,126.79,126.77,3.32]
[1765866118840,3.9889946,126.79,126.78,3.32]
[1765866119940,110.3738,126.87,126.78,3.32]
[1765866120136,110.3738,126.87,126.81,0.05079129]
[1765866120337,4.10724131,126.9,126.82,3.32]
[1765866120543,110.3577,126.89,126.85,0.05387073]
[1765866121132,7.0956,126.87,126.85,0.05387073]
[1765866124050,7.0945,126.89,126.85,3.14387073]
[1765866124249,114.43744131,126.92,126.85,3.14387073]
[1765866124442,110.3396,126.91,126.87,0.05568402]
[1765866125045,110.3269,126.93,126.87,3.14568402]
[1765866125241,4.10724131,126.94,126.87,3.14568402]
[1765866125447,4.10724131,126.94,126.89,3.14260452]
[1765866125945,7.093,126.92,126.89,0.05260452]
[1765866126448,7.0933,126.91,126.89,0.05260452]
[1765866127945,4.10724131,126.9,126.89,0.05260452]
[1765866128144,7.0951,126.88,126.82,3.09]
[1765866128449,4.10724131,126.88,126.82,3.09]
[1765866128947,110.3591,126.89,126.82,3.09]
[1765866129154,0.05275984,126.87,126.84,0.05512153]
[1765866129850,7.0962,126.86,126.84,0.05512153]
[1765866134444,0.05275984,126.87,126.84,3.14512153]